bitfinex/quotes_BTCUSD_20250225
["timestamp","ask_amount","ask_price","bid_price","bid_amount"]
[1740508534301,0.17198,87219.0,87218.0,0.01501811]
[1740508534445,0.17198,87219.0,87218.0,0.01544372]
[1740508535320,0.0757,87259.0,87218.0,0.01544372]
[1740508535477,0.124,87270.0,87220.0,0.229305]
[1740508535815,0.229184,87266.0,87233.0,0.01454085]
[1740508536032,0.3056962,87280.0,87235.0,0.01454085]
[1740508536253,0.229155,87277.0,87236.0,0.01662255]
[1740508536391,0.0008472,87280.0,87242.0,0.0821]
[1740508536592,0.00879234,87275.0,87244.0,0.01454085]
[1740508536837,0.0008472,87280.0,87246.0,0.01454085]
[1740508536992,0.229197,87261.0,87248.0,0.171921]
[1740508537198,0.01871127,87278.0,87248.0,0.171921]
[1740508537199,0.171904,87258.0,87248.0,0.171921]
[1740508537400,0.0008474,87278.0,87249.0,0.12105251]
[1740508537640,0.0008474,87278.0,87251.0,0.171917]
[1740508537641,0.229172,87271.0,87251.0,0.171917]
[1740508537814,0.0008474,87278.0,87252.0,0.24423711]
[1740508538031,0.229174,87270.0,87252.0,0.0151483]
[1740508538230,0.229158,87276.0,87254.0,0.01454085]
[1740508538438,0.01862347,87278.0,87263.0,0.229192]
[1740508538601,0.01862347,87278.0,87262.0,0.0773]
[1740508538602,0.01862347,87278.0,87267.0,0.171884]
[1740508538953,0.01862347,87278.0,87269.0,0.171882]
[1740508539118,0.01862347,87278.0,87268.0,0.01662212]
[1740508539321,0.001,87270.0,87269.0,0.07991898]
[1740508539706,0.01862347,87278.0,87269.0,0.25180098]
[1740508539905,0.01862347,87278.0,87270.0,0.00160398]
[1740508539906,0.0008474,87278.0,87270.0,0.00160398]
[1740508540114,0.0008474,87278.0,87275.0,0.171868]
[1740508540358,0.0008474,87278.0,87271.0,0.01501811]
[1740508540522,0.0008474,87278.0,87272.0,0.06345371]
[1740508540726,0.0008474,87278.0,87272.0,0.06505759]
[1740508540929,0.0008474,87278.0,87272.0,0.06345371]
[1740508541147,0.0045269,87311.0,87272.0,0.06345371]
[1740508541348,0.171858,87281.0,87273.0,0.02754195]
[1740508541555,0.17187,87275.0,87274.0,0.10706607]
[1740508542401,0.171872,87274.0,87273.0,0.01501811]
[1740508542594,0.171872,87274.0,87273.0,0.02101811]
[1740508542987,0.171872,87274.0,87273.0,0.01501811]
[1740508543162,0.171872,87274.0,87273.0,0.07017992]
[1740508543791,0.171872,87274.0,87273.0,0.01501811]
[1740508545288,0.317746,87285.0,87273.0,0.01501811]
[1740508545596,0.3,87293.0,87273.0,0.01501811]
[1740508545818,0.171872,87274.0,87273.0,0.01501811]
[1740508548120,0.172872,87274.0,87273.0,0.02001811]
[1740508548723,0.171872,87274.0,87273.0,0.01501811]
[1740508548933,0.171872,87274.0,87273.0,0.01901811]
[1740508549755,0.0353005,87314.0,87273.0,0.01501811]
[1740508549956,0.171871,87275.0,87273.0,0.01501811]
[1740508550177,0.171872,87274.0,87273.0,0.01501811]
[1740508551080,0.171872,87274.0,87273.0,0.01901811]
[1740508551653,0.3,87304.0,87273.0,0.01501811]
[1740508551855,0.3,87290.0,87273.0,0.01901811]
[1740508552053,0.02155221,87305.0,87274.0,0.02481961]
[1740508553338,0.001,87274.0,87273.0,0.02271231]
[1740508553731,0.172872,87274.0,87273.0,0.02271231]
[1740508553938,0.001,87274.0,87273.0,0.02271231]
[1740508554205,0.001,87274.0,87273.0,0.04790044]
[1740508554353,0.001,87274.0,87273.0,0.02271231]
[1740508554553,0.001,87274.0,87273.0,0.01671231]
[1740508554554,0.172872,87274.0,87273.0,0.01671231]
[1740508554756,0.171872,87274.0,87273.0,0.01671231]
[1740508555078,0.171872,87274.0,87273.0,0.01971231]
[1740508555665,0.229158,87276.0,87273.0,0.01671231]
[1740508555888,0.172872,87274.0,87273.0,0.02271231]
[1740508556324,0.171872,87274.0,87273.0,0.01671231]
[1740508556721,0.172872,87274.0,87273.0,0.02271231]
[1740508557837,0.171872,87274.0,87273.0,0.01671231]
[1740508558142,0.171872,87274.0,87273.0,0.02171231]
[1740508558318,0.172872,87274.0,87273.0,0.02171231]
[1740508560419,0.56747512,87274.0,87273.0,2e-07]
[1740508560764,0.3,87257.0,87244.0,1.1e-07]
[1740508560966,0.3,87257.0,87223.0,0.0457]
[1740508560967,0.471933,87243.0,87242.0,0.00182213]
[1740508561242,0.171982,87218.0,87210.0,0.0495]
[1740508561443,0.171982,87218.0,87217.0,0.00212101]
[1740508561650,0.471982,87218.0,87217.0,0.00212101]
[1740508561852,0.02163623,87243.0,87217.0,0.00212101]
[1740508562056,0.171975,87222.0,87218.0,1.1e-07]
[1740508562187,0.171933,87243.0,87242.0,0.001]
[1740508562387,0.49357586,87243.0,87242.0,0.001]
[1740508562590,0.229247,87242.0,87228.0,0.247763]
[1740508562777,0.0458,87271.0,87242.0,1.1e-07]
[1740508563108,0.171894,87264.0,87243.0,0.10617206]
[1740508563313,0.229173,87271.0,87246.0,0.01454085]
[1740508563511,0.343665,87295.0,87247.0,0.59442433]
[1740508563800,0.229178,87269.0,87258.0,0.171903]
[1740508564007,0.171895,87263.0,87259.0,0.0141903]
[1740508564178,0.10165311,87290.0,87259.0,0.01419041]
[1740508564416,0.02243405,87272.0,87259.0,1.1e-07]
[1740508564586,0.229127,87288.0,87259.0,1.1e-07]
[1740508564818,0.0028471,87287.0,87259.0,0.17202727]
[1740508564993,0.0028471,87287.0,87260.0,0.00160409]
[1740508565190,0.3,87276.0,87261.0,0.229197]
[1740508565366,0.3,87276.0,87259.0,0.00012727]
[1740508565367,0.02349279,87287.0,87273.0,0.0016942]
[1740508565572,0.2299781,87287.0,87273.0,0.0016942]
[1740508565775,0.229134,87285.0,87273.0,0.0016942]
[1740508565936,0.0008471,87287.0,87274.0,0.22916211]
[1740508566141,0.0008471,87287.0,87275.0,0.08200392]
[1740508566406,0.171854,87284.0,87276.0,0.02555702]
[1740508566762,0.229134,87285.0,87276.0,0.02555702]
[1740508566969,0.02269941,87287.0,87276.0,0.02555702]
[1740508567229,0.0008471,87287.0,87278.0,0.228152]
[1740508567424,0.171847,87287.0,87279.0,0.01454085]
[1740508567566,0.1,87327.0,87280.0,0.10598092]
[1740508567768,0.171856,87283.0,87280.0,0.11690103]
[1740508567991,0.171858,87281.0,87280.0,0.11690103]
[1740508568196,0.171855,87283.0,87280.0,0.11690103]
[1740508568401,0.171853,87284.0,87280.0,0.11690103]
[1740508568620,0.229126,87288.0,87281.0,0.0733901]
[1740508568820,0.171856,87282.0,87281.0,0.0733901]
[1740508569038,0.03048063,87315.0,87281.0,0.0733901]
[1740508569178,0.229058,87314.0,87285.0,0.09163121]
[1740508569382,0.03048063,87315.0,87288.0,0.01454085]
[1740508569383,0.0078482,87315.0,87288.0,0.01454085]
[1740508569613,0.03020659,87315.0,87294.0,0.09163121]
[1740508569820,0.03020659,87315.0,87296.0,0.01454085]
[1740508570023,0.0008482,87315.0,87303.0,0.09163121]
[1740508570309,0.0008482,87315.0,87309.0,0.171801]
[1740508570534,0.0008482,87315.0,87304.0,0.5382033]
[1740508570535,0.0008482,87315.0,87310.0,0.01092]
[1740508570912,0.0008482,87315.0,87309.0,0.00012716]
[1740508571109,0.0008482,87315.0,87311.0,0.01092]
[1740508571791,0.0018482,87315.0,87311.0,0.01092]
[1740508572202,0.229058,87314.0,87311.0,0.01092]
[1740508572488,0.0018482,87315.0,87311.0,0.01092]
[1740508573203,0.0008482,87315.0,87311.0,0.01092]
[1740508573358,0.0008482,87315.0,87312.0,0.0467055]
[1740508573561,0.0008482,87315.0,87310.0,0.05512681]
[1740508573767,0.171799,87311.0,87310.0,0.05512681]
[1740508573965,0.0008482,87315.0,87310.0,0.05512681]
[1740508574286,0.0018482,87315.0,87311.0,0.177798]
[1740508574488,0.0018482,87315.0,87312.0,0.04637263]
[1740508574702,0.171799,87311.0,87310.0,0.05512681]
[1740508574864,0.001,87311.0,87310.0,0.06112681]
[1740508575064,0.001,87311.0,87310.0,0.06112692]
[1740508575797,0.472799,87311.0,87310.0,0.006]
[1740508576324,0.471801,87310.0,87309.0,0.00012716]
[1740508576729,0.0018482,87315.0,87309.0,0.00012716]
[1740508577089,0.0008482,87315.0,87310.0,1.1e-07]
[1740508577315,0.0008482,87315.0,87311.0,0.00792273]
[1740508577793,0.0008482,87315.0,87314.0,0.171793]
[1740508578147,0.0018482,87315.0,87312.0,0.171797]
[1740508578488,0.0018482,87315.0,87314.0,0.171793]
[1740508578921,0.0018482,87315.0,87312.0,0.229062]
[1740508579120,0.0018482,87315.0,87313.0,0.2318131]
[1740508579316,0.0018482,87315.0,87313.0,0.0600181]
[1740508579479,0.0008482,87315.0,87314.0,0.171793]
[1740508579675,0.0008482,87315.0,87314.0,0.70999619]
[1740508579878,0.0008482,87315.0,87314.0,0.72293396]
[1740508580093,0.0008482,87315.0,87314.0,0.84168149]
[1740508580720,0.0008482,87315.0,87314.0,0.83668149]
[1740508580916,0.0008474,87326.0,87325.0,0.170772]
[1740508581090,0.0008474,87326.0,87325.0,0.96436315]
[1740508581306,0.0008472,87342.0,87327.0,0.571768]
[1740508581307,8e-07,87328.0,87327.0,0.571768]
[1740508581490,8e-07,87328.0,87327.0,0.86511553]
[1740508581941,0.00372013,87349.0,87348.0,0.171726]
[1740508582100,0.00372013,87349.0,87348.0,0.86470709]
[1740508582525,0.00372013,87349.0,87348.0,0.99180709]
[1740508583338,0.00414651,87349.0,87348.0,1.01335372]
[1740508583755,0.00414651,87349.0,87348.0,1.02035372]
[1740508583927,0.00514651,87349.0,87348.0,1.02035372]
[1740508584137,0.00514651,87349.0,87348.0,0.99880709]
[1740508587533,0.00514651,87349.0,87348.0,0.87051871]
[1740508587958,0.00514651,87349.0,87348.0,0.73249871]
[1740508588158,0.00514651,87349.0,87348.0,0.74703956]
[1740508589386,0.00514651,87349.0,87348.0,0.74263956]
[1740508590413,0.00599331,87349.0,87348.0,0.74263956]
[1740508590979,0.0008475,87362.0,87357.0,0.171709]
[1740508591156,0.0008475,87362.0,87355.0,0.228948]
[1740508591537,0.0008475,87362.0,87357.0,0.171709]
[1740508592420,0.0008475,87362.0,87357.0,0.30159977]
[1740508592628,0.0018475,87358.0,87357.0,0.30699738]
[1740508592795,0.0018475,87358.0,87357.0,0.33379305]
[1740508593201,0.0017675,87358.0,87357.0,0.33379305]
[1740508593587,0.0007675,87358.0,87357.0,0.32679305]
[1740508594003,0.0007675,87358.0,87357.0,0.03379567]
[1740508594211,0.0007675,87358.0,87357.0,0.007]
[1740508594413,0.0007675,87358.0,87357.0,0.178709]
[1740508595013,0.0007675,87358.0,87357.0,0.007]
[1740508595358,0.171698,87363.0,87357.0,0.007]
[1740508595576,0.171699,87362.0,87357.0,0.007]
[1740508595781,0.0008471,87375.0,87358.0,0.04222119]
[1740508595982,0.171698,87363.0,87358.0,1.1e-07]
[1740508596273,0.0008471,87375.0,87358.0,1.1e-07]
[1740508596274,0.171705,87359.0,87358.0,1.1e-07]
[1740508596680,0.171699,87362.0,87358.0,1.1e-07]
[1740508596895,0.22993,87363.0,87358.0,1.1e-07]
[1740508596896,0.171705,87359.0,87358.0,1.1e-07]
[1740508597094,0.228913,87370.0,87358.0,1.1e-07]
[1740508597250,0.22893,87363.0,87359.0,0.05222001]
[1740508597457,0.171703,87360.0,87359.0,0.05222001]
[1740508597653,0.171703,87360.0,87359.0,0.05222012]
[1740508598109,0.471703,87360.0,87359.0,1.1e-07]
[1740508598313,0.3,87360.0,87359.0,1.1e-07]
[1740508598468,0.0008471,87375.0,87359.0,1.1e-07]
[1740508598668,0.171703,87360.0,87359.0,1.1e-07]
[1740508598921,0.17270489,87359.0,87358.0,0.007]
[1740508599080,0.17270489,87359.0,87358.0,0.06092]
[1740508599486,0.171705,87359.0,87358.0,0.05392]
[1740508600993,0.471715,87354.0,87353.0,0.5322]
[1740508601231,0.171724,87349.0,87348.0,0.00012716]
[1740508601430,0.171724,87349.0,87348.0,0.00182016]
[1740508601773,0.471724,87349.0,87348.0,0.00182016]
[1740508602620,0.472724,87349.0,87348.0,0.00682016]
[1740508603003,0.471724,87349.0,87348.0,0.00182016]
[1740508603608,0.3,87349.0,87348.0,0.00182016]
[1740508603782,0.471724,87349.0,87348.0,0.00182016]
[1740508604005,0.228918,87368.0,87350.0,0.171722]
[1740508604206,0.171715,87354.0,87351.0,0.04025112]
[1740508604414,0.034419,87386.0,87352.0,0.3251]
[1740508604609,0.1725505,87360.0,87354.0,0.171713]
[1740508604883,0.171706,87359.0,87355.0,0.39785902]
[1740508605069,0.171706,87359.0,87355.0,0.3251]
[1740508605254,0.2297855,87360.0,87355.0,0.3251]
[1740508605255,0.171709,87358.0,87355.0,0.3251]
[1740508605449,0.228941,87359.0,87355.0,0.3251]
[1740508605709,0.171711,87356.0,87355.0,0.3251]
[1740508606443,0.171711,87356.0,87355.0,0.3321]
[1740508607057,0.471711,87356.0,87355.0,0.007]
[1740508607681,0.171724,87349.0,87348.0,0.00182016]
[1740508607912,0.471724,87349.0,87348.0,0.00182016]
[1740508608115,0.471724,87349.0,87348.0,0.08773218]
[1740508608778,0.171715,87354.0,87348.0,0.08973218]
[1740508608979,0.0008465,87360.0,87356.0,0.171709]
[1740508609185,0.0008465,87360.0,87349.0,0.0016025]
[1740508609410,0.171706,87359.0,87350.0,0.32670254]
[1740508609610,0.171707,87358.0,87351.0,0.04809347]
[1740508609831,0.171718,87353.0,87351.0,0.04809347]
[1740508610139,0.0008465,87360.0,87351.0,0.04809347]
[1740508610542,0.171719,87352.0,87351.0,0.04809347]
[1740508610748,0.0008465,87360.0,87359.0,0.171705]
[1740508610955,0.0008465,87360.0,87359.0,0.2117701]
[1740508611354,0.0008465,87360.0,87359.0,0.5368701]
[1740508611772,0.0008465,87360.0,87359.0,1.0690701]
[1740508611920,0.0018465,87360.0,87359.0,1.0730701]
[1740508612514,0.0008465,87360.0,87359.0,1.0690701]
[1740508612972,0.0018465,87360.0,87359.0,1.0730701]
[1740508615797,0.1735495,87360.0,87359.0,0.8563]
[1740508616555,0.0018465,87360.0,87359.0,0.8563]
[1740508616793,0.19362556,87360.0,87359.0,0.3241]
[1740508616994,0.19462556,87360.0,87359.0,0.3311]
[1740508617135,0.02192256,87360.0,87359.0,0.40044608]
[1740508617542,0.0028465,87360.0,87359.0,0.57615108]
[1740508617746,0.0028465,87360.0,87359.0,0.65495108]
[1740508618388,0.0018465,87360.0,87359.0,0.66249193]
[1740508618651,0.0018465,87360.0,87359.0,1.19769193]
[1740508618652,0.0008465,87360.0,87359.0,1.19769193]
[1740508618853,0.0018465,87360.0,87359.0,1.19469193]
[1740508619091,0.0018465,87360.0,87359.0,1.20169193]
[1740508619357,0.0018465,87360.0,87359.0,1.19469193]
[1740508619778,0.0018465,87360.0,87359.0,1.20169193]
[1740508620000,0.0018465,87360.0,87359.0,1.19469193]
[1740508620179,0.0008465,87360.0,87359.0,1.19069193]
[1740508620522,0.0018465,87360.0,87359.0,1.19469193]
[1740508620726,0.0018465,87360.0,87359.0,1.30843946]
[1740508620852,0.0018465,87360.0,87359.0,1.30443946]
[1740508621053,0.0008465,87360.0,87359.0,1.34983946]
[1740508621348,5e-07,87360.0,87359.0,1.7623283]
[1740508621493,5e-07,87360.0,87359.0,1.7693283]
[1740508621696,5e-07,87360.0,87359.0,1.7623283]
[1740508622066,0.0008471,87375.0,87374.0,0.36431585]
[1740508622263,0.0008471,87375.0,87374.0,1.450514]
[1740508622580,0.0008471,87375.0,87374.0,1.750514]
[1740508623199,0.0008071,87375.0,87374.0,1.757514]
[1740508623566,1e-07,87375.0,87374.0,1.757514]
[1740508624094,0.0008471,87403.0,87398.0,0.171628]
[1740508624326,0.0008471,87403.0,87398.0,1.15643973]
[1740508624532,0.0008471,87403.0,87398.0,1.16937918]
[1740508624829,0.0008471,87403.0,87398.0,1.24677918]
[1740508625106,0.0008471,87403.0,87398.0,1.31350076]
[1740508625308,0.0008471,87403.0,87398.0,1.31362792]
[1740508625446,0.0018475,87399.0,87398.0,1.32662792]
[1740508625849,0.0018475,87399.0,87398.0,1.72805378]
[1740508626072,0.0018475,87399.0,87398.0,1.83505378]
[1740508626399,6e-07,87404.0,87403.0,0.68615885]
[1740508626549,6e-07,87404.0,87403.0,0.91376334]
[1740508627636,0.0008468,87446.0,87436.0,0.171554]
[1740508627842,0.0008468,87446.0,87436.0,1.15214178]
[1740508628275,0.0008468,87446.0,87436.0,0.8522994]
[1740508628478,0.17154,87443.0,87436.0,0.8522994]
[1740508628614,0.1857155,87437.0,87436.0,0.8522994]
[1740508628812,0.18614241,87437.0,87436.0,0.92863121]
[1740508629015,0.18614241,87437.0,87436.0,0.93563121]
[1740508629218,0.18614241,87437.0,87436.0,0.92863121]
[1740508629444,0.01459041,87437.0,87436.0,0.92863121]
[1740508629644,0.01459041,87437.0,87436.0,0.93563121]
[1740508630330,0.01559041,87437.0,87436.0,0.94263121]
[1740508630942,0.01559041,87437.0,87436.0,0.93563121]
[1740508631222,0.0008468,87446.0,87437.0,0.04674021]
[1740508631397,0.0008468,87446.0,87445.0,0.171536]
[1740508631860,0.0008468,87446.0,87443.0,0.227718]
[1740508632085,0.0008468,87446.0,87445.0,0.18607685]
[1740508632962,0.0008468,87446.0,87445.0,1.15372436]
[1740508633159,0.0018468,87446.0,87445.0,1.16928658]
[1740508633345,0.0018468,87446.0,87445.0,1.51928658]
[1740508633540,0.0018468,87446.0,87445.0,1.41928658]
[1740508633741,0.0018468,87446.0,87445.0,1.14488305]
[1740508633984,0.0018468,87446.0,87445.0,1.43016658]
[1740508634159,0.0028468,87446.0,87445.0,1.43016658]
[1740508634385,0.0018468,87446.0,87445.0,1.43016658]
[1740508634603,0.034374,87506.0,87455.0,0.171516]
[1740508634902,0.171495,87466.0,87456.0,0.869451]
[1740508635200,0.02047733,87487.0,87458.0,0.01454085]
[1740508635346,0.228608,87486.0,87465.0,0.25]
[1740508635558,0.02047733,87487.0,87466.0,0.01454085]
[1740508635765,0.228627,87479.0,87467.0,0.02645409]
[1740508635981,0.02147733,87487.0,87468.0,0.98218811]
[1740508636181,0.02047733,87487.0,87469.0,0.8522994]
[1740508636582,0.24908233,87487.0,87486.0,0.25]
[1740508636814,0.24908233,87487.0,87486.0,0.275]
[1740508637015,0.62878233,87487.0,87486.0,0.25]
[1740508637217,0.67528233,87487.0,87486.0,0.25]
[1740508637747,0.24908233,87487.0,87486.0,0.25]
[1740508637952,0.02047733,87487.0,87486.0,0.25]
[1740508638184,0.02147733,87487.0,87486.0,0.275]
[1740508638380,0.19249133,87487.0,87486.0,0.276]
[1740508638526,0.02103733,87487.0,87486.0,0.276]
[1740508638726,0.02103733,87487.0,87486.0,0.5950994]
[1740508638928,0.01948002,87487.0,87486.0,0.5950994]
[1740508639303,0.171435,87497.0,87486.0,0.6020994]
[1740508639500,0.1221,87521.0,87487.0,0.91180934]
[1740508639696,0.1221,87521.0,87488.0,0.8522994]
[1740508640092,0.228519,87520.0,87488.0,0.8522994]
[1740508640482,0.24798892,87520.0,87489.0,0.8522994]
[1740508640675,0.01946992,87520.0,87490.0,0.85389928]
[1740508640947,0.171416,87506.0,87493.0,0.17144]
[1740508641218,7e-05,87522.0,87494.0,0.02309499]
[1740508641429,0.171415,87507.0,87495.0,0.3216992]
[1740508641578,0.003,87520.0,87495.0,0.4915364]
[1740508641920,0.171407,87511.0,87497.0,0.171432]
[1740508642136,0.171403,87513.0,87499.0,0.171428]
[1740508642342,0.003,87520.0,87519.0,0.25]
[1740508642542,0.171389,87520.0,87519.0,0.249]
[1740508643078,0.171389,87520.0,87519.0,0.24912716]
[1740508644288,0.171389,87520.0,87519.0,0.25212716]
[1740508644505,0.171389,87520.0,87519.0,0.27633988]
[1740508645159,0.02017776,87522.0,87519.0,0.27633988]
[1740508645365,7e-05,87522.0,87519.0,0.27633988]
[1740508645565,7e-05,87522.0,87519.0,0.28133988]
[1740508646440,7e-05,87522.0,87521.0,0.25]
[1740508646634,7e-05,87522.0,87521.0,0.30739221]
[1740508647310,7e-05,87522.0,87521.0,0.49332006]
[1740508647512,7e-05,87522.0,87521.0,0.68976759]
[1740508647712,7e-05,87522.0,87521.0,0.69676759]
[1740508647883,7e-05,87522.0,87521.0,0.70376759]
[1740508648141,0.0008464,87534.0,87521.0,0.70376759]
[1740508648142,0.0008464,87534.0,87533.0,0.171363]
[1740508648330,0.0008464,87534.0,87533.0,0.29965138]
[1740508648719,0.0778,87589.0,87569.0,0.01192395]
[1740508648931,0.171289,87571.0,87570.0,0.01192395]
[1740508649085,0.171305,87563.0,87562.0,0.01192395]
[1740508650149,0.19170961,87563.0,87562.0,0.01192395]
[1740508650732,0.02040461,87563.0,87562.0,0.01192395]
[1740508651248,0.02040461,87563.0,87562.0,0.01892395]
[1740508651454,0.02040461,87563.0,87562.0,0.26892395]
[1740508651607,0.02040461,87563.0,87562.0,0.28881635]
[1740508651808,0.19170961,87563.0,87562.0,0.28881635]
[1740508652022,0.19170961,87563.0,87562.0,0.29581635]
[1740508652215,0.19170961,87563.0,87562.0,0.30281635]
[1740508652484,0.19170961,87563.0,87562.0,0.264]
[1740508652692,0.19170961,87563.0,87562.0,0.257]
[1740508652892,0.19170961,87563.0,87550.0,0.01192395]
[1740508652893,0.17135,87540.0,87539.0,0.01192395]
[1740508653043,0.3,87558.0,87527.0,0.01088]
[1740508653203,0.171373,87528.0,87527.0,0.01088]
[1740508653436,0.171373,87528.0,87527.0,0.04906463]
[1740508653861,0.19120348,87528.0,87527.0,0.04906463]
[1740508654281,0.19120348,87528.0,87527.0,0.05606463]
[1740508654706,0.19163066,87528.0,87527.0,0.06306463]
[1740508654906,0.19163066,87528.0,87523.0,0.3200994]
[1740508654907,0.171381,87524.0,87523.0,0.3200994]
[1740508656060,0.171395,87517.0,87516.0,0.01192395]
[1740508656177,0.02025766,87528.0,87516.0,0.01192395]
[1740508656377,0.02025766,87528.0,87521.0,0.01192395]
[1740508656680,0.228511,87524.0,87516.0,0.01192395]
[1740508656919,0.02025766,87528.0,87515.0,0.01192395]
[1740508657117,0.171397,87516.0,87515.0,0.01192395]
[1740508657640,0.171412,87508.0,87507.0,0.3200994]
[1740508658096,0.171409,87510.0,87507.0,0.3200994]
[1740508658297,0.171412,87508.0,87507.0,0.3200994]
[1740508658505,0.171412,87508.0,87507.0,0.41834569]
[1740508659013,0.171412,87508.0,87507.0,0.41342174]
[1740508659204,0.171412,87508.0,87507.0,0.41142174]
[1740508659728,0.471412,87508.0,87507.0,0.41142174]
[1740508659929,0.471412,87508.0,87507.0,0.007]
[1740508660142,0.471412,87508.0,87475.0,0.3180994]
[1740508660143,0.171475,87476.0,87475.0,0.3180994]
[1740508660558,0.19694836,87478.0,87475.0,0.3180994]
[1740508660759,0.3,87477.0,87463.0,0.01192395]
[1740508660967,0.471503,87462.0,87461.0,0.01192395]
[1740508661163,0.171505,87461.0,87460.0,0.33002335]
[1740508661409,0.171505,87461.0,87460.0,0.3180994]
[1740508661648,0.171505,87461.0,87460.0,0.31822656]
[1740508662010,0.32006021,87462.0,87461.0,0.01192395]
[1740508662011,0.02006021,87462.0,87461.0,0.01192395]
[1740508662226,0.171481,87473.0,87472.0,0.01192395]
[1740508662577,0.3,87474.0,87472.0,0.01192395]
[1740508662700,0.171455,87487.0,87481.0,0.01192395]
[1740508662907,0.034375,87496.0,87488.0,0.01192395]
[1740508663126,0.0764,87518.0,87494.0,0.01092395]
[1740508663373,0.171429,87500.0,87495.0,0.01092395]
[1740508663577,0.228527,87517.0,87495.0,0.01092395]
[1740508663578,0.0999995,87535.0,87502.0,0.01092395]
[1740508663726,0.171422,87503.0,87502.0,0.01092395]
[1740508664153,0.171422,87503.0,87502.0,0.01105111]
[1740508664312,0.19140648,87503.0,87502.0,0.01105111]
[1740508664707,0.19140648,87503.0,87502.0,0.01005111]
[1740508664926,0.172422,87503.0,87502.0,0.01705111]
[1740508665132,0.172422,87503.0,87502.0,0.05126616]
[1740508665341,0.49212944,87503.0,87502.0,0.00712716]
[1740508665972,0.171479,87474.0,87473.0,0.3180994]
[1740508666175,0.171479,87474.0,87473.0,0.32815037]
[1740508666581,0.171479,87474.0,87473.0,0.31822642]
[1740508666807,0.171479,87474.0,87473.0,0.03194966]
[1740508667037,0.171479,87474.0,87473.0,0.00012702]
[1740508667418,0.171479,87474.0,87473.0,0.00512702]
[1740508667613,0.172479,87474.0,87473.0,0.00612702]
[1740508667879,0.472479,87474.0,87473.0,0.00612702]
[1740508668084,0.472479,87474.0,87473.0,0.00712702]
[1740508668290,0.472479,87474.0,87473.0,0.00612702]
[1740508668536,0.472479,87474.0,87473.0,0.00812702]
[1740508668933,0.471479,87474.0,87473.0,0.00212702]
[1740508669316,0.471479,87474.0,87473.0,0.00612702]
[1740508669715,0.471479,87474.0,87473.0,0.00212702]
[1740508672886,0.171528,87449.0,87445.0,0.3180994]
[1740508673032,0.171528,87449.0,87448.0,0.00182131]
[1740508674261,0.171528,87449.0,87448.0,0.00282131]
[1740508674522,0.19019249,87449.0,87448.0,0.00182131]
[1740508674871,0.19019249,87449.0,87448.0,0.00282131]
[1740508675066,0.19119249,87449.0,87448.0,0.03491338]
[1740508675491,0.19019249,87449.0,87448.0,0.03491338]
[1740508675912,0.19119249,87449.0,87448.0,0.03491338]
[1740508676237,0.19119249,87449.0,87448.0,0.00282131]
[1740508679322,0.19119249,87449.0,87448.0,0.01274526]
[1740508679470,0.001,87449.0,87448.0,0.18427526]
[1740508679677,0.00857853,87485.0,87468.0,0.00992395]
[1740508679875,0.171489,87469.0,87468.0,0.32802335]
[1740508680200,0.171489,87469.0,87468.0,0.32702335]
[1740508680561,0.171489,87469.0,87468.0,0.32602335]
[1740508680759,0.171489,87469.0,87468.0,0.35862568]
[1740508681001,0.3,87475.0,87474.0,0.00992395]
[1740508681201,0.228608,87486.0,87476.0,0.00892395]
[1740508681433,0.034376,87493.0,87485.0,0.00892395]
[1740508681592,0.171436,87496.0,87490.0,0.18037195]
[1740508681769,0.01829511,87499.0,87495.0,0.00892395]
[1740508681952,0.0008464,87503.0,87495.0,0.31902335]
[1740508682151,0.0008464,87503.0,87502.0,0.17434795]
[1740508682579,0.0008464,87503.0,87502.0,0.19048847]
[1740508682954,0.0008464,87503.0,87502.0,0.00092395]
[1740508683163,0.0008464,87503.0,87502.0,0.01017031]
[1740508683484,0.0018464,87503.0,87502.0,0.02117031]
[1740508683695,0.0018464,87503.0,87502.0,0.19259431]
[1740508684142,0.0028464,87503.0,87502.0,0.19659431]
[1740508684321,0.0028464,87503.0,87502.0,0.01717031]
[1740508684496,0.0028464,87503.0,87502.0,0.18859431]
[1740508684918,0.0018464,87503.0,87502.0,0.18159431]
[1740508685123,0.0018464,87503.0,87502.0,0.20313516]
[1740508685328,0.0018464,87503.0,87502.0,0.39828269]
[1740508685666,0.034353,87553.0,87503.0,0.01454085]
[1740508685875,0.228422,87558.0,87536.0,0.00092395]
[1740508686077,0.228422,87558.0,87521.0,0.09141238]
[1740508686078,0.3,87541.0,87537.0,0.00092395]
[1740508686282,0.11945912,87548.0,87544.0,0.00092395]
[1740508686483,0.01780601,87548.0,87540.0,0.17127395]
[1740508686638,0.01780601,87548.0,87535.0,0.01454085]
[1740508686986,0.171345,87543.0,87536.0,0.002]
[1740508687327,0.01960738,87548.0,87536.0,0.002]
[1740508687503,0.0014276,87548.0,87538.0,0.171353]
[1740508687710,0.17134,87546.0,87538.0,0.171353]
[1740508687950,0.01952898,87548.0,87538.0,0.228472]
[1740508688094,0.01952898,87548.0,87540.0,0.171349]
[1740508688303,0.01952898,87548.0,87541.0,0.04944807]
[1740508689003,0.18986298,87548.0,87541.0,0.22079407]
[1740508689183,0.01852898,87548.0,87523.0,0.03397419]
[1740508689388,0.47134,87545.0,87544.0,0.006]
[1740508689587,0.471348,87541.0,87540.0,0.007]
[1740508690126,0.228448,87547.0,87519.0,0.0463]
[1740508690127,0.171387,87522.0,87519.0,0.0463]
[1740508690266,0.3,87540.0,87519.0,0.0463]
[1740508690464,0.3,87540.0,87512.0,0.09141238]
[1740508690465,0.00858224,87542.0,87509.0,0.0795]
[1740508690710,0.01952898,87548.0,87510.0,0.15046153]
[1740508690910,0.01952898,87548.0,87517.0,0.01454085]
[1740508691086,0.01952898,87548.0,87540.0,0.005]
[1740508691308,0.171348,87541.0,87540.0,0.005]
[1740508692239,0.472348,87541.0,87540.0,0.012]
[1740508692403,0.472348,87541.0,87540.0,0.007]
[1740508693310,0.58620496,87541.0,87540.0,0.005]
[1740508693517,0.0084756,87530.0,87488.0,0.1212]
[1740508693729,0.17145,87489.0,87488.0,0.0462]
[1740508694128,0.228586,87495.0,87488.0,0.0462]
[1740508694411,0.228547,87510.0,87488.0,0.0462]
[1740508694687,0.228495,87529.0,87489.0,0.0930122]
[1740508694926,0.3,87516.0,87490.0,0.01392122]
[1740508695138,0.3,87514.0,87490.0,0.01392122]
[1740508695337,0.30042733,87529.0,87490.0,0.01392122]
[1740508695535,0.3,87523.0,87488.0,0.0462]